bitfinex/quotes_SOLUSD_20241126
["timestamp","ask_amount","ask_price","bid_price","bid_amount"]
[1732623013675,26.41282486,228.81,228.7,132.77396017]
[1732623013676,26.41282486,228.8,228.75,5.0]
[1732623013876,26.41282486,228.79,228.75,5.0]
[1732623014108,46.41282486,228.91,228.71,5.0]
[1732623014109,26.41282486,228.77,228.71,5.0]
[1732623014273,116.41282486,228.91,228.7,137.77396017]
[1732623014274,26.41282486,228.75,228.7,137.77396017]
[1732623014599,23.776884,228.85,228.77,5.0]
[1732623014898,26.41282486,228.83,228.79,5.0]
[1732623015199,4.3694,228.86,228.83,5.0]
[1732623015499,26.41282486,228.85,228.8,5.0]
[1732623015704,15.2931,228.86,228.8,5.0]
[1732623015705,26.41282486,228.84,228.8,5.0]
[1732623016003,30.78222486,228.86,228.8,5.0]
[1732623016504,1.76001049,228.88,228.84,5.0]
[1732623016686,4.3692,228.88,228.84,5.0]
[1732623017001,26.41282486,228.87,228.84,5.0]
[1732623017205,26.41282486,228.87,228.82,5.0]
[1732623017397,26.41282486,228.87,228.83,5.0]
[1732623017581,26.41282486,228.87,228.73,16.7825]
[1732623017582,1.80013124,228.89,228.88,5.0]
[1732623017777,26.41282486,228.96,228.88,31.41282486]
[1732623017983,4.3681,228.94,228.88,31.41282486]
[1732623018297,4.3681,228.94,228.91,5.0]
[1732623019283,30.78092486,228.94,228.91,5.0]
[1732623019486,4.3681,228.94,228.91,5.0]
[1732623019704,6.10776091,228.96,228.93,5.0]
[1732623019881,4.3676,228.96,228.94,5.0]
[1732623020199,4.3672,228.98,228.95,5.0]
[1732623020383,4.3672,228.98,228.97,5.0]
[1732623020585,4.9126042,229.0,228.99,5.0]
[1732623021288,0.5457042,229.0,228.99,5.0]
[1732623021895,0.5457042,229.0,228.97,31.41282486]
[1732623022400,11.04288523,229.01,229.0,5.0]
[1732623022606,10.914,229.07,228.91,26.41282486]
[1732623022607,4.3656,229.06,229.02,5.0]
[1732623022794,30.77842486,229.06,228.97,31.41282486]
[1732623023190,4.3656,229.06,229.02,5.0]
[1732623023502,30.77842486,229.06,229.01,5.0]
[1732623023687,26.41282486,229.04,228.97,31.41282486]
[1732623023892,26.41282486,229.04,228.97,5.0]
[1732623023893,26.41282486,229.02,228.97,5.0]
[1732623024481,28.23641426,229.04,228.97,5.0]
[1732623024699,4.3662,229.03,229.01,5.0]
[1732623025191,1.8235894,229.04,229.03,5.0]
[1732623025396,1.8235894,229.04,228.99,26.41282486]
[1732623025605,1.8235894,229.04,229.03,5.0]
[1732623025606,6.1895894,229.04,229.03,5.0]
[1732623026009,6.1895894,229.04,228.99,26.41282486]
[1732623026206,6.1895894,229.04,229.03,5.0]
[1732623026810,6.1895894,229.04,228.99,26.41282486]
[1732623026987,6.1895894,229.04,228.97,31.41282486]
[1732623027188,6.1895894,229.04,228.97,5.0]
[1732623027189,26.41282486,229.03,228.97,5.0]
[1732623027504,17.1046894,229.04,228.97,31.41282486]
[1732623027690,26.41282486,229.01,228.97,5.0]
[1732623028402,26.41282486,229.0,228.92,26.41282486]
[1732623028589,17.1046894,229.04,228.92,26.41282486]
[1732623028793,17.1046894,229.04,228.81,28.9899]
[1732623028794,30.77922486,229.02,228.94,26.41282486]
[1732623029011,4.3664,229.02,228.96,26.41282486]
[1732623029180,4.3664,229.02,228.91,26.41282486]
[1732623029181,4.3664,229.02,228.94,26.41282486]
[1732623029587,30.77922486,229.02,228.94,26.41282486]
[1732623030022,30.77922486,229.02,228.88,4.369]
[1732623030023,6.1895894,229.04,228.98,26.41282486]
[1732623030186,6.1895894,229.04,228.88,4.369]
[1732623030387,26.41282486,229.03,228.94,26.41282486]
[1732623030595,26.41282486,229.03,228.88,4.369]
[1732623030795,26.41282486,229.03,228.92,26.41282486]
[1732623030796,26.41282486,229.01,228.92,26.41282486]
[1732623031013,26.41282486,229.01,228.94,26.41282486]
[1732623031212,26.41282486,229.01,228.92,26.41282486]
[1732623031786,4.3668,229.0,228.92,26.41282486]
[1732623032011,4.3666,229.02,228.94,26.41282486]
[1732623032210,26.41282486,229.03,228.94,26.41282486]
[1732623032486,1.8235894,229.04,228.91,26.41282486]
[1732623032698,1.8235894,229.04,228.91,5.0]
[1732623032992,1.8235894,229.04,229.0,26.41282486]
[1732623033200,1.8235894,229.04,229.02,26.41282486]
[1732623033594,4.3654,229.08,229.02,26.41282486]
[1732623034996,30.77792486,229.09,229.02,26.41282486]
[1732623035393,1.807466,229.16,229.04,26.67479486]
[1732623035597,26.41282486,229.12,229.04,26.67479486]
[1732623035794,26.41282486,229.1,229.04,0.26197]
[1732623035997,37.0869,229.19,229.04,0.26197]
[1732623036216,37.0869,229.19,229.06,26.41282486]
[1732623036217,26.41282486,229.12,229.06,26.41282486]
[1732623036425,26.41282486,229.14,229.06,26.41282486]
[1732623038113,44.62886443,229.2,229.12,26.41282486]
[1732623038426,44.62886443,229.2,229.05,4.3658]
[1732623038631,44.62886443,229.2,229.12,26.41282486]
[1732623038802,4.3631,229.19,229.12,26.41282486]
[1732623039929,26.41282486,229.18,229.1,26.41282486]
[1732623040220,26.41282486,229.18,229.08,26.41282486]
[1732623040406,26.41282486,229.18,229.1,26.41282486]
[1732623041512,4.3635,229.17,229.1,26.41282486]
[1732623041821,26.41282486,229.16,229.07,26.41282486]
[1732623042126,26.41282486,229.12,229.05,26.41282486]
[1732623042335,26.41282486,229.1,229.04,0.26197]
[1732623042501,26.41282486,229.08,229.04,0.26197]
[1732623043518,4.3654,229.07,229.04,0.26197]
[1732623044240,4.365,229.09,229.04,0.26197]
[1732623044418,26.41282486,229.06,229.04,0.26197]
[1732623044732,50.18970886,229.05,229.04,0.26197]
[1732623045234,23.776884,229.05,229.04,0.26197]
[1732623045601,54.55550886,229.05,229.04,0.26197]
[1732623046001,30.77862486,229.05,229.04,0.26197]
[1732623046940,26.41282486,229.05,229.04,0.26197]
[1732623047727,30.77862486,229.05,229.04,0.26197]
[1732623048713,54.55550886,229.05,229.04,0.26197]
[1732623049308,4.3658,229.05,229.04,0.26197]
[1732623049517,30.77862486,229.05,229.04,0.26197]
[1732623050710,54.55550886,229.05,229.04,0.26197]
[1732623051123,30.77862486,229.05,229.04,0.26197]
[1732623052415,4.3658,229.05,229.04,0.26197]
[1732623052612,30.77862486,229.05,229.04,0.26197]
[1732623053712,54.55550886,229.05,229.04,0.26197]
[1732623054416,30.77862486,229.05,229.04,0.26197]
[1732623055711,26.41282486,229.07,229.04,0.26197]
[1732623056643,4.3647,229.11,229.04,0.26197]
[1732623056843,26.41282486,229.09,229.04,0.26197]
[1732623058026,30.77792486,229.09,229.04,0.26197]
[1732623058633,4.3651,229.09,229.04,0.26197]
[1732623058931,30.77792486,229.09,229.04,0.26197]
[1732623059643,26.41282486,229.05,229.04,0.26197]
[1732623059818,50.18970886,229.05,229.04,0.26197]
[1732623061541,54.55550886,229.05,229.04,0.26197]
[1732623061839,59.55550886,229.05,229.04,0.26197]
[1732623062045,54.55550886,229.05,229.04,0.26197]
[1732623062612,54.55550886,229.05,229.04,7e-05]
[1732623063033,59.55550886,229.05,229.04,7e-05]
[1732623063231,33.142684,229.05,229.04,7e-05]
[1732623063424,59.55550886,229.05,229.04,7e-05]
[1732623064048,54.55550886,229.05,229.04,7e-05]
[1732623064342,85.96833372,229.05,229.04,7e-05]
[1732623064546,20.0,228.97,228.81,33.42362486]
[1732623064721,26.41282486,228.89,228.81,33.42362486]
[1732623064928,26.41282486,228.95,228.86,26.41282486]
[1732623065224,26.41282486,228.98,228.9,26.41282486]
[1732623065433,26.41282486,228.98,228.81,11.3811]
[1732623065434,26.41282486,228.94,228.86,26.41282486]
[1732623065639,4.3681,228.93,228.81,7.0108]
[1732623065944,26.41282486,228.98,228.88,26.41282486]
[1732623066144,211.4,229.11,228.96,26.41282486]
[1732623066445,26.41282486,229.06,228.96,26.41282486]
[1732623066620,26.41282486,229.08,228.98,26.41282486]
[1732623067241,26.41282486,229.06,228.96,26.41282486]
[1732623067745,4.3658,229.05,228.96,26.41282486]
[1732623068836,4.3655,229.07,228.98,26.41282486]
[1732623069240,4.3655,229.07,229.0,26.41282486]
[1732623070335,26.41282486,229.06,228.96,26.41282486]
[1732623071142,26.41282486,229.06,228.98,26.41282486]
[1732623071753,26.41282486,228.99,228.95,18.8185]
[1732623071923,26.41282486,228.97,228.85,26.41282486]
[1732623072124,26.41282486,229.02,228.78,7.0108]
[1732623072125,26.41282486,228.9,228.78,7.0108]
[1732623072324,23.776884,228.91,228.78,7.0108]
[1732623072325,23.776884,228.87,228.79,26.41282486]
[1732623072549,26.41282486,228.9,228.79,26.41282486]
[1732623072756,26.41282486,228.88,228.79,26.41282486]
[1732623073047,26.41282486,228.99,228.87,26.41282486]
[1732623073242,26.41282486,228.99,228.9,26.41282486]
[1732623073444,23.776884,229.0,228.92,26.41282486]
[1732623073630,26.41282486,229.01,228.92,26.41282486]
[1732623073824,10.9118,229.11,228.94,26.41282486]
[1732623074029,26.41282486,229.07,228.98,26.41282486]
[1732623074544,26.41282486,229.09,229.0,26.41282486]
[1732623075636,26.41282486,229.09,229.01,4.3666]
[1732623075833,26.41282486,229.09,229.0,26.41282486]
[1732623076032,26.41282486,229.09,229.0,30.77952486]
[1732623076234,26.41282486,229.07,229.0,4.3667]
[1732623076857,26.41282486,229.09,229.0,30.77952486]
[1732623077227,4.3649,229.1,228.97,26.41282486]
[1732623077228,26.41282486,229.06,228.97,26.41282486]
[1732623077425,26.41282486,229.04,228.95,30.78052486]
[1732623077734,26.41282486,229.06,228.97,26.41282486]
[1732623078037,4.3649,229.1,228.95,4.3677]
[1732623078038,26.41282486,229.08,228.99,26.41282486]
[1732623079434,26.41282486,229.08,229.0,4.3668]
[1732623080247,26.41282486,229.08,229.01,26.41282486]
[1732623081233,26.41282486,229.1,229.03,26.41282486]
[1732623081541,15.0,229.14,229.07,26.41282486]
[1732623081542,41.41282486,229.14,229.07,26.41282486]
[1732623082058,15.0,229.14,229.07,26.41282486]
[1732623082237,15.0,229.14,229.07,53.92482486]
[1732623083150,41.41282486,229.14,229.07,53.92482486]
[1732623083357,41.41282486,229.14,229.07,27.512]
[1732623083552,26.41282486,229.12,229.07,27.512]
[1732623083859,26.41282486,229.1,229.01,26.41282486]
[1732623084239,26.41282486,229.1,229.03,26.41282486]
[1732623084846,30.77782486,229.1,229.01,26.41282486]
[1732623085052,26.41282486,229.07,228.99,53.92482486]
[1732623085553,26.41282486,229.05,228.99,27.512]
[1732623086053,26.41282486,229.07,228.99,58.29162486]
[1732623087359,30.77832486,229.07,228.99,58.29162486]
[1732623087852,30.77832486,229.07,228.99,53.92482486]
[1732623088041,4.3655,229.07,228.99,53.92482486]
[1732623088633,30.77832486,229.07,228.99,53.92482486]
[1732623089032,26.41282486,229.09,229.01,26.41282486]
[1732623089551,26.41282486,229.09,228.99,58.29172486]
[1732623089959,26.41282486,229.09,229.01,26.41282486]
[1732623090162,30.77792486,229.09,229.01,26.41282486]
[1732623090460,30.77792486,229.09,229.0,4.3666]
[1732623090761,30.77792486,229.09,229.01,26.41282486]
[1732623090941,23.776884,229.08,228.99,46.47142486]
[1732623091140,23.776884,229.06,228.99,46.47142486]
[1732623091336,30.77792486,229.09,229.01,26.41282486]
[1732623092559,30.77792486,229.09,229.01,30.77932486]
[1732623092742,30.77792486,229.09,229.01,26.41282486]
[1732623092948,30.77792486,229.09,229.01,30.77942486]
[1732623093164,30.77752486,229.12,229.03,26.41282486]
[1732623093342,26.41282486,229.12,229.03,26.41282486]
[1732623093544,19.3642,229.14,229.07,26.41282486]
[1732623093545,41.41282486,229.14,229.07,26.41282486]
[1732623093854,15.0,229.14,229.07,26.41282486]
[1732623094243,15.0,229.14,229.08,4.3652]
[1732623094550,15.0,229.14,229.11,26.41282486]
[1732623094747,45.77702486,229.14,229.07,34.22142486]
[1732623094965,41.41282486,229.14,229.07,38.58682486]
[1732623095166,4.3643,229.13,229.07,7.8086]
[1732623095645,26.41282486,229.12,229.04,4.366]
[1732623095839,41.41282486,229.14,229.05,26.41282486]
[1732623096053,41.41282486,229.14,229.07,26.41282486]
[1732623096255,41.41282486,229.14,229.01,7.8086]
[1732623096256,41.41282486,229.14,229.05,26.41282486]
[1732623096444,45.77692486,229.14,229.06,4.3656]
[1732623096853,45.77692486,229.14,229.05,30.77862486]
[1732623096854,26.41282486,229.12,229.05,30.77862486]
[1732623097049,26.41282486,229.12,229.05,26.41282486]
[1732623097260,26.41282486,229.12,229.03,26.41282486]
[1732623097564,26.41282486,229.1,229.03,26.41282486]
[1732623097754,26.41282486,229.1,229.01,7.8086]
[1732623098067,26.41282486,229.1,229.02,26.41282486]
[1732623098563,4.365,229.09,229.02,26.41282486]
[1732623098864,4.365,229.09,229.0,26.41282486]
[1732623100741,23.776884,229.07,229.0,26.41282486]
[1732623100945,23.776884,229.07,228.99,20.0586]
[1732623101148,26.41282486,229.08,228.98,26.41282486]
[1732623101483,23.776884,229.07,228.98,26.41282486]
[1732623101660,26.41282486,229.06,228.98,26.41282486]
[1732623102464,50.18970886,229.08,228.98,26.41282486]
[1732623102640,4.3654,229.07,228.98,30.77992486]
[1732623103043,26.41282486,229.06,228.98,30.77992486]
[1732623103665,26.41282486,229.06,228.98,26.41282486]
[1732623104746,26.41282486,229.04,228.96,26.41282486]
[1732623104942,26.41282486,228.98,228.93,24.5324]
[1732623105156,26.41282486,228.98,228.9,26.41282486]
[1732623105346,4.3658,229.05,228.88,26.41282486]
[1732623105347,26.41282486,228.96,228.88,26.41282486]
[1732623105543,26.41282486,228.96,228.86,20.1643]
[1732623105746,26.41282486,228.92,228.82,26.41282486]
[1732623106144,26.41282486,228.92,228.84,26.41282486]
[1732623106350,26.41282486,228.94,228.84,26.41282486]
[1732623106745,4.3678,228.95,228.88,26.41282486]
[1732623107255,4.3672,228.98,228.81,10.02567088]
[1732623107459,26.41282486,228.84,228.75,26.41282486]
[1732623107663,26.41282486,228.84,228.77,26.41282486]
[1732623107966,26.41282486,228.84,228.75,26.41282486]
[1732623108148,26.41282486,228.82,228.73,26.41282486]
[1732623108484,26.41282486,228.78,228.69,26.41282486]
[1732623108768,26.41282486,228.8,228.71,26.41282486]
[1732623108949,10.924,228.86,228.75,26.41282486]
[1732623108950,26.41282486,228.84,228.75,26.41282486]
[1732623109146,26.41282486,228.82,228.73,26.41282486]
[1732623109348,26.41282486,228.84,228.75,26.41282486]
[1732623109557,43.776884,228.92,228.81,26.41282486]
[1732623109871,26.41282486,228.91,228.83,26.41282486]
[1732623110261,26.41282486,228.89,228.79,26.41282486]
[1732623110441,26.41282486,228.87,228.79,26.41282486]
[1732623110645,26.41282486,228.89,228.79,26.41282486]
[1732623110858,30.78172486,228.89,228.79,30.78352486]
[1732623111045,23.776884,228.88,228.81,26.41282486]
[1732623111447,23.776884,228.88,228.78,30.78362486]
[1732623111448,26.41282486,228.87,228.78,30.78362486]
[1732623112069,26.41282486,228.87,228.78,26.41282486]
[1732623112750,30.78212486,228.87,228.78,26.41282486]
[1732623114458,4.3693,228.87,228.8,26.41282486]
[1732623115374,30.78212486,228.87,228.8,26.41282486]
[1732623116357,26.41282486,228.82,228.73,26.41282486]
[1732623117573,4.3706,228.8,228.73,26.41282486]
[1732623117757,4.3706,228.8,228.7,4.3723]
[1732623117758,26.41282486,228.78,228.7,4.3723]
[1732623118356,26.41282486,228.82,228.73,26.41282486]
[1732623119574,26.41282486,228.84,228.75,26.41282486]
[1732623119775,26.41282486,228.84,228.77,26.41282486]
[1732623120365,26.41282486,228.82,228.73,26.41282486]
[1732623120757,26.41282486,228.84,228.75,26.41282486]
[1732623121073,26.41282486,228.8,228.71,30.78512486]
[1732623121779,26.41282486,228.78,228.71,30.78512486]
[1732623121961,4.3698,228.84,228.71,30.78512486]
[1732623121962,26.41282486,228.8,228.71,30.78512486]
[1732623122289,16.41027683,228.8,228.72,16.41027683]
[1732623122660,16.41027683,228.82,228.74,16.41027683]
[1732623122853,4.3696,228.86,228.76,16.41027683]
[1732623122854,16.41027683,228.84,228.76,16.41027683]
[1732623123362,16.41027683,228.86,228.78,16.41027683]
[1732623123774,16.41027683,228.86,228.79,4.3708]
[1732623124387,26.24662314,228.85,228.79,4.3708]
[1732623124989,26.24662314,228.93,228.84,26.24662314]
[1732623125162,26.24662314,228.97,228.9,26.24662314]
[1732623125361,26.24662314,229.01,228.92,26.24662314]
[1732623125673,15.2791,229.07,228.84,5.0]
[1732623125674,26.24662314,229.05,228.96,26.24662314]
[1732623125886,26.24662314,229.05,228.97,4.3673]
[1732623126384,26.24662314,229.07,228.98,26.24662314]
[1732623126965,26.24662314,229.07,229.0,26.24662314]
[1732623127160,26.24662314,229.09,229.0,26.24662314]
[1732623127361,5.0,229.17,228.97,4.3673]
[1732623127362,26.24662314,229.11,229.02,26.24662314]
[1732623127567,26.24662314,229.13,229.05,26.24662314]
[1732623127778,26.24662314,229.13,229.04,4.366]
[1732623128288,26.24662314,229.11,229.04,4.366]
[1732623128484,26.24662314,229.15,229.05,26.24662314]
[1732623128786,26.24662314,229.17,229.09,26.24662314]
[1732623129383,26.24662314,229.17,229.07,26.24662314]
[1732623129582,26.24662314,229.15,229.07,26.24662314]
[1732623129967,26.24662314,229.15,229.08,4.3652]
[1732623130378,26.24662314,229.13,229.06,4.3655]
[1732623130683,26.24662314,229.08,228.96,15.2863]
[1732623130888,26.24662314,229.06,228.97,26.24662314]
[1732623131175,26.24662314,229.1,229.01,26.24662314]
[1732623131685,26.24662314,229.08,229.01,26.24662314]
[1732623132066,26.24662314,229.08,229.02,4.3664]
[1732623132469,26.24662314,229.1,229.02,4.3664]
[1732623133090,26.24662314,229.12,229.05,26.24662314]
[1732623133262,26.24662314,229.14,229.05,26.24662314]
[1732623133681,4.3638,229.16,229.03,26.24662314]
[1732623133888,26.24662314,229.12,229.03,26.24662314]
[1732623134268,26.24662314,229.12,229.04,4.366]
[1732623134580,26.24662314,229.16,229.07,26.24662314]
[1732623135090,26.24662314,229.14,229.07,26.24662314]
[1732623135761,26.24662314,229.14,229.08,4.3652]
[1732623136084,26.24662314,229.16,229.08,4.3652]
[1732623136588,26.24662314,229.18,229.09,26.24662314]
[1732623137469,26.24662314,229.18,229.1,4.3649]
[1732623139496,26.24662314,229.22,229.13,26.24662314]
[1732623139989,4.8834611,229.23,229.15,26.24662314]
[1732623140371,0.5210611,229.23,229.15,26.24662314]
[1732623140769,4.8834611,229.23,229.15,26.24662314]
[1732623140984,26.24662314,229.19,229.11,26.24662314]
[1732623141183,31.13018424,229.23,229.15,26.24662314]
[1732623142392,31.13018424,229.23,229.15,30.61052314]
[1732623142767,4.8835611,229.23,229.17,26.24662314]
[1732623143290,4.8835611,229.23,229.15,30.61052314]
[1732623143291,31.13018424,229.23,229.15,30.61052314]
[1732623143671,31.13018424,229.23,229.15,26.24662314]
[1732623144190,0.5210611,229.23,229.17,26.24662314]
[1732623144493,0.5210611,229.23,229.1,15.2771]
[1732623144687,0.5210611,229.23,229.16,26.24662314]
[1732623146372,4.8834611,229.23,229.16,26.24662314]
[1732623147171,0.5210611,229.23,229.16,30.61032314]
[1732623147885,4.8834611,229.23,229.16,26.24662314]
[1732623148066,4.8834611,229.23,229.16,30.61032314]
[1732623148270,4.8834611,229.23,229.16,20.71268155]
[1732623148470,0.5210611,229.23,229.16,20.71268155]
[1732623149396,0.5210611,229.23,229.18,16.34898155]
[1732623149987,0.5210611,229.23,229.16,16.34898155]
[1732623150380,0.5210611,229.23,229.2,16.34898155]
[1732623151482,0.5210611,229.23,229.18,16.34898155]
[1732623151796,0.5210611,229.23,229.1,15.2771]
[1732623151797,16.34898155,229.21,229.12,16.34898155]
[1732623151972,16.34898155,229.15,229.08,20.71418155]
[1732623152168,23.776884,229.22,229.1,16.34898155]
[1732623152373,7.3779,229.07,228.78,70.1445359]
[1732623152571,16.34898155,228.95,228.86,16.34898155]
[1732623152796,76.7246029,229.06,228.81,10.9259]
[1732623152797,16.34898155,228.99,228.9,16.34898155]
[1732623153006,7.3779,229.07,228.94,16.34898155]
[1732623153007,23.776884,229.0,228.94,16.34898155]
[1732623153295,16.34898155,229.09,228.98,16.34898155]
[1732623153502,20.0,229.12,228.98,16.34898155]
[1732623153503,23.776884,229.06,228.98,16.34898155]
[1732623153805,28.142484,229.06,228.98,16.34898155]
[1732623153983,4.3654,229.08,229.0,16.34898155]
[1732623154177,23.776884,229.07,229.0,16.34898155]
[1732623154393,30.55850558,229.1,229.02,26.19350558]
[1732623154578,26.19350558,229.12,229.04,26.19350558]
[1732623155082,26.19350558,229.14,229.06,26.19350558]
[1732623155994,30.55770558,229.14,229.04,26.19350558]
[1732623156204,30.55770558,229.14,229.06,26.19350558]
[1732623156411,30.55770558,229.14,229.03,4.3661]
[1732623156412,26.19350558,229.09,229.03,4.3661]
[1732623156577,23.776884,229.13,229.03,4.3661]
[1732623156578,26.19350558,229.07,229.03,4.3661]
[1732623157003,26.19350558,229.09,229.03,4.3661]
[1732623157178,23.30502635,229.21,229.03,4.3661]
[1732623157179,26.19350558,229.11,229.03,26.19350558]
[1732623157505,26.19350558,229.13,229.03,26.19350558]
[1732623157698,26.19350558,229.11,229.03,26.19350558]
[1732623157898,26.19350558,229.11,229.01,26.19350558]
[1732623158404,26.19350558,229.11,229.02,4.3664]
[1732623159179,26.19350558,229.09,229.02,4.3664]
[1732623159508,26.19350558,229.03,228.9,26.19350558]
[1732623159689,26.19350558,229.13,228.9,26.19350558]
[1732623159690,26.19350558,228.98,228.9,26.19350558]
[1732623160577,26.19350558,228.96,228.91,4.3685]
[1732623160910,20.0,228.89,228.73,18.2558]
[1732623161088,20.0,228.89,228.65,7.235]
[1732623161089,26.19350558,228.77,228.72,4.372]
[1732623161405,26.19350558,228.81,228.73,26.19350558]
[1732623161607,26.19350558,228.83,228.75,26.19350558]
[1732623161782,26.19350558,228.79,228.72,30.56550558]
[1732623162097,26.19350558,228.83,228.75,26.19350558]
[1732623162298,26.19350558,228.85,228.77,26.19350558]
[1732623162484,26.19350558,228.85,228.78,4.371]
[1732623162881,26.19350558,228.81,228.78,4.371]
[1732623163099,26.19350558,228.87,228.79,26.19350558]
[1732623163482,26.19350558,228.85,228.78,4.371]
[1732623165087,5.0,229.02,228.81,26.19350558]
[1732623165294,26.19350558,228.92,228.83,26.19350558]
[1732623165687,26.19350558,228.9,228.81,26.19350558]
[1732623166489,26.19350558,228.9,228.82,4.3702]
[1732623167115,26.19350558,228.88,228.82,4.3702]
[1732623167789,15.2838,229.0,228.82,4.3702]
[1732623167790,26.19350558,228.9,228.82,4.3702]
[1732623168319,26.19350558,229.02,228.82,4.3702]
[1732623168320,20.0,229.02,228.87,26.19350558]
[1732623168611,26.19350558,228.95,228.87,26.19350558]
[1732623168811,26.19350558,228.97,228.87,26.19350558]
[1732623169396,26.19350558,228.97,228.88,4.3691]
[1732623169598,26.19350558,228.97,228.89,26.19350558]
[1732623169999,26.19350558,228.99,228.9,26.19350558]
[1732623170495,4.3652,229.08,228.92,26.19350558]
[1732623170796,26.19350558,229.08,228.99,26.19350558]
[1732623171005,26.19350558,229.08,229.01,26.19350558]
[1732623171215,26.19350558,229.11,229.01,26.19350558]
[1732623171412,26.19350558,229.13,229.06,4.3656]
[1732623171591,26.19350558,229.15,229.07,26.19350558]
[1732623172321,26.19350558,229.17,229.07,26.19350558]
[1732623172616,26.19350558,229.15,229.08,4.3652]
[1732623172992,26.19350558,229.17,229.08,4.3652]
[1732623173287,26.19350558,229.19,229.11,26.19350558]
[1732623173491,31.8587396,229.21,229.11,26.19350558]
[1732623174309,26.71456668,229.23,229.13,26.19350558]
[1732623174609,26.71456668,229.23,229.14,4.3641]
[1732623174790,26.19350558,229.21,229.14,4.3641]
[1732623174991,26.71456668,229.23,229.14,4.3641]
[1732623175895,0.5210611,229.23,229.15,26.19350558]
[1732623176112,26.19350558,229.22,229.15,26.19350558]
[1732623176411,26.19350558,229.22,229.14,4.3641]
[1732623176616,0.5210611,229.23,229.14,4.3641]
[1732623176617,26.19350558,229.2,229.14,4.3641]
[1732623176912,26.19350558,229.2,229.13,26.19350558]
[1732623177111,26.19350558,229.22,229.13,26.19350558]
[1732623177694,26.19350558,229.22,229.11,10.9113]
[1732623177892,26.19350558,229.22,229.14,26.19350558]
[1732623178100,0.5210611,229.23,229.16,26.19350558]
[1732623178992,26.19350558,229.22,229.11,16.78984741]
[1732623179210,26.19350558,229.17,229.1,26.19350558]
[1732623179413,26.19350558,229.17,229.08,26.19350558]
[1732623179710,26.19350558,229.13,229.05,30.55930558]
[1732623180017,26.19350558,229.15,229.07,26.19350558]
[1732623180416,26.19350558,229.19,229.11,26.19350558]
[1732623180917,26.19350558,229.15,229.06,26.19350558]
[1732623181091,26.19350558,229.13,229.04,26.19350558]
[1732623181288,26.19350558,229.09,229.01,22.0056]
[1732623181704,26.19350558,229.09,229.02,26.19350558]
[1732623182315,25.0,229.19,229.02,26.19350558]
[1732623182316,26.19350558,229.11,229.02,30.55980558]
[1732623182526,26.19350558,229.13,229.04,26.19350558]
[1732623182703,26.19350558,229.19,229.12,26.19350558]
[1732623182894,26.19350558,229.19,229.1,26.19350558]
[1732623183410,26.19350558,229.19,229.12,26.19350558]
[1732623184044,26.19350558,229.21,229.12,26.19350558]
[1732623184405,26.19350558,229.21,229.13,4.3643]
[1732623184712,16.91236576,229.24,229.14,26.19350558]
[1732623184713,26.71456668,229.23,229.14,26.19350558]
[1732623185212,26.71456668,229.23,229.16,26.19350558]
[1732623185413,0.5210611,229.23,229.16,26.19350558]
[1732623185605,0.5210611,229.23,229.18,26.19350558]
[1732623185914,26.71456668,229.23,229.16,26.19350558]
[1732623186512,26.71456668,229.23,229.13,4.3643]
[1732623186513,26.71456668,229.23,229.17,4.3635]
[1732623186716,26.71456668,229.23,229.1,30.55840558]
[1732623186717,26.19350558,229.18,229.1,30.55840558]
[1732623187924,26.19350558,229.2,229.1,30.55840558]
[1732623188509,26.19350558,229.2,229.12,26.19350558]
[1732623188715,26.19350558,229.22,229.14,26.19350558]
[1732623189925,26.19350558,229.22,229.15,4.3639]
[1732623190223,0.5210611,229.23,229.16,26.19350558]
[1732623190710,0.5210611,229.23,229.18,26.19350558]
[1732623191324,0.5210611,229.23,229.19,4.3631]
[1732623193123,0.5210611,229.23,229.2,26.19350558]
[1732623193417,0.5210611,229.23,229.21,4.3628]
[1732623194599,0.5210611,229.23,229.19,4.363]
[1732623199222,26.19350558,229.2,229.12,26.19350558]
[1732623199425,26.19350558,229.2,229.13,4.3643]
[1732623199626,26.19350558,229.2,229.07,10.9133]
[1732623199627,30.55650558,229.2,229.07,10.9133]
[1732623199820,26.19350558,229.18,229.11,4.3647]
[1732623200831,30.55690558,229.18,229.1,26.19350558]
[1732623201134,26.19350558,229.18,229.1,26.19350558]
[1732623202424,26.19350558,229.12,229.01,17.6391]
[1732623202739,26.19350558,229.1,229.02,30.55990558]
[1732623203227,26.19350558,229.06,229.02,4.3664]
[1732623203431,26.19350558,229.08,229.02,4.3664]
[1732623203603,26.19350558,229.08,229.0,26.19350558]
[1732623203925,26.19350558,229.08,229.01,4.3666]
[1732623204129,26.19350558,229.14,229.07,26.19350558]